[Event "*** Titled Tuesday Blitz"]
[Site "Chess.com"]
[Date "2020.05.19"]
[Round "6"]
[White "124chess"]
[Black "Alomaterapia"]
[Result "0-1"]
[WhiteElo "2738"]
[BlackElo "2546"]
[TimeControl "180+1"]
[EndTime "13:11:40 PDT"]
[Termination "Alomaterapia won by checkmate"]

1. e4 {[%clk 0:03:00.9]} 1... c6 {[%clk 0:02:58.9]} 2. d4 {[%clk 0:03:00.8]}
2... d5 {[%clk 0:02:59.8]} 3. exd5 {[%clk 0:03:01.7]} 3... cxd5 {[%clk
0:03:00.1]} 4. Bd3 {[%clk 0:03:02.3]} 4... Nc6 {[%clk 0:03:00.6]} 5. c3 {[%clk
0:03:02.5]} 5... Qc7 {[%clk 0:03:00.6]} 6. h3 {[%clk 0:03:01.2]} 6... e6 {[%clk
0:03:00.1]} 7. Nf3 {[%clk 0:03:00.8]} 7... Bd6 {[%clk 0:03:00.6]} 8. O-O {[%clk
0:03:01.3]} 8... Nge7 {[%clk 0:03:01]} 9. c4 {[%clk 0:02:54.3]} 9... dxc4 {[%clk
0:02:57.1]} 10. Bxc4 {[%clk 0:02:54.6]} 10... O-O {[%clk 0:02:56.1]} 11. Nc3
{[%clk 0:02:54.5]} 11... a6 {[%clk 0:02:54.9]} 12. Bd3 {[%clk 0:02:54.4]} 12...
h6 {[%clk 0:02:51.2]} 13. Be3 {[%clk 0:02:41]} 13... e5 {[%clk 0:02:36.3]} 14.
Rc1 {[%clk 0:02:38.3]} 14... exd4 {[%clk 0:02:32.7]} 15. Nxd4 {[%clk 0:02:39.2]}
15... Nxd4 {[%clk 0:02:31.3]} 16. Bxd4 {[%clk 0:02:38.9]} 16... Be6 {[%clk
0:02:13.9]} 17. Ne4 {[%clk 0:02:03.3]} 17... Qd7 {[%clk 0:01:46.3]} 18. Nxd6
{[%clk 0:02:02.9]} 18... Qxd6 {[%clk 0:01:47.2]} 19. Bc5 {[%clk 0:02:03.6]}
19... Qd7 {[%clk 0:01:40.9]} 20. Be4 {[%clk 0:02:03.4]} 20... Rfd8 {[%clk
0:01:30.5]} 21. Qf3 {[%clk 0:01:50]} 21... Nc6 {[%clk 0:01:18.5]} 22. Bb6 {[%clk
0:01:28]} 22... Rdc8 {[%clk 0:01:16.5]} 23. Rfd1 {[%clk 0:01:27.5]} 23... Qe7
{[%clk 0:01:16.4]} 24. Bb1 {[%clk 0:01:24.7]} 24... Qb4 {[%clk 0:01:11.5]} 25.
Bc5 {[%clk 0:01:16]} 25... Qxb2 {[%clk 0:01:01.4]} 26. Qe4 {[%clk 0:01:14.9]}
26... g6 {[%clk 0:00:59.7]} 27. Qf4 {[%clk 0:01:02.4]} 27... h5 {[%clk
0:00:41.3]} 28. Re1 {[%clk 0:00:50.9]} 28... Qg7 {[%clk 0:00:29.7]} 29. Bd6
{[%clk 0:00:41]} 29... Rd8 {[%clk 0:00:26.5]} 30. a3 {[%clk 0:00:36.2]} 30...
Rd7 {[%clk 0:00:22.6]} 31. Qg3 {[%clk 0:00:22.7]} 31... h4 {[%clk 0:00:21.6]}
32. Qf4 {[%clk 0:00:19.3]} 32... g5 {[%clk 0:00:21.5]} 33. Qd2 {[%clk
0:00:10.8]} 33... Rad8 {[%clk 0:00:21.2]} 34. Qc2 {[%clk 0:00:06.8]} 34... Rxd6
{[%clk 0:00:21]} 35. Qe4 {[%clk 0:00:06.6]} 35... Bd5 {[%clk 0:00:20]} 36. Qf5
{[%clk 0:00:04.2]} 36... Be6 {[%clk 0:00:20]} 37. Qe4 {[%clk 0:00:04.1]} 37...
Rd4 {[%clk 0:00:20.1]} 38. Qc2 {[%clk 0:00:03.9]} 38... Rd2 {[%clk 0:00:20.3]}
39. Qe4 {[%clk 0:00:04]} 39... R8d4 {[%clk 0:00:20.5]} 40. Qf3 {[%clk
0:00:04.1]} 40... Rd5 {[%clk 0:00:17.9]} 41. a4 {[%clk 0:00:03.9]} 41... Nd4
{[%clk 0:00:15.9]} 42. Qe4 {[%clk 0:00:03.8]} 42... Nc6 {[%clk 0:00:15.4]} 43.
Qf3 {[%clk 0:00:04]} 43... Rd6 {[%clk 0:00:15]} 44. Qe4 {[%clk 0:00:04.3]} 44...
Rd8 {[%clk 0:00:15.2]} 45. Qf3 {[%clk 0:00:04.6]} 45... Qh6 {[%clk 0:00:14.2]}
46. Qe4 {[%clk 0:00:04.8]} 46... R2d4 {[%clk 0:00:13.8]} 47. Qf3 {[%clk
0:00:04.8]} 47... Kg7 {[%clk 0:00:14.1]} 48. Rc5 {[%clk 0:00:04.5]} 48... Qf6
{[%clk 0:00:13.8]} 49. Qe3 {[%clk 0:00:04.7]} 49... Rf4 {[%clk 0:00:13.3]} 50.
a5 {[%clk 0:00:03.9]} 50... Rd5 {[%clk 0:00:09.9]} 51. Rcc1 {[%clk 0:00:03.3]}
51... Re5 {[%clk 0:00:09.4]} 52. Qd2 {[%clk 0:00:03.1]} 52... Rd4 {[%clk
0:00:06.3]} 53. Qc2 {[%clk 0:00:03.2]} 53... Rxe1+ {[%clk 0:00:03.9]} 54. Rxe1
{[%clk 0:00:04.1]} 54... Kf8 {[%clk 0:00:02.6]} 55. Qh7 {[%clk 0:00:04.3]} 55...
Qg7 {[%clk 0:00:02.9]} 56. Qc2 {[%clk 0:00:04]} 56... Rd6 {[%clk 0:00:03.1]} 57.
Qc5 {[%clk 0:00:04.1]} 57... Ke7 {[%clk 0:00:03.5]} 58. Rd1 {[%clk 0:00:04.4]}
58... Qe5 {[%clk 0:00:04.1]} 59. Qa3 {[%clk 0:00:04.8]} 59... Kd7 {[%clk
0:00:04.1]} 60. Rc1 {[%clk 0:00:04.6]} 60... Qxa5 {[%clk 0:00:04.4]} 61. Qf3
{[%clk 0:00:04.4]} 61... Qe5 {[%clk 0:00:04.4]} 62. Rf1 {[%clk 0:00:04.4]} 62...
Qf4 {[%clk 0:00:04.7]} 63. Qe2 {[%clk 0:00:04.5]} 63... b5 {[%clk 0:00:05.1]}
64. Qb2 {[%clk 0:00:04.7]} 64... Bc4 {[%clk 0:00:05.4]} 65. Re1 {[%clk
0:00:04.7]} 65... Re6 {[%clk 0:00:06]} 66. Rd1+ {[%clk 0:00:05.1]} 66... Ke7
{[%clk 0:00:06.4]} 67. Qa3+ {[%clk 0:00:04.6]} 67... b4 {[%clk 0:00:06.2]} 68.
Qb2 {[%clk 0:00:03.2]} 68... Qe5 {[%clk 0:00:05.8]} 69. Qd2 {[%clk 0:00:03.1]}
69... Qc3 {[%clk 0:00:05.6]} 70. Qd7+ {[%clk 0:00:03.5]} 70... Kf6 {[%clk
0:00:05]} 71. Qc8 {[%clk 0:00:02.3]} 71... Kg7 {[%clk 0:00:04.8]} 72. Qd7 {[%clk
0:00:02.4]} 72... Qf6 {[%clk 0:00:05]} 73. Qd2 {[%clk 0:00:02.4]} 73... Qe7
{[%clk 0:00:05]} 74. Qc1 {[%clk 0:00:02.5]} 74... f6 {[%clk 0:00:04.9]} 75. Qd2
{[%clk 0:00:02.1]} 75... Ne5 {[%clk 0:00:04.8]} 76. Qc2 {[%clk 0:00:02.6]} 76...
Bd3 {[%clk 0:00:03]} 77. Rxd3 {[%clk 0:00:03]} 77... Nxd3 {[%clk 0:00:03.5]} 78.
Qxd3 {[%clk 0:00:03.9]} 78... Re1+ {[%clk 0:00:03.7]} 79. Kh2 {[%clk 0:00:04.4]}
79... Qe5+ {[%clk 0:00:03.6]} 80. g3 {[%clk 0:00:04.9]} 80... hxg3+ {[%clk
0:00:04.1]} 81. Kg2 {[%clk 0:00:05.4]} 81... Rxb1 {[%clk 0:00:02]} 82. Qxb1
{[%clk 0:00:05.3]} 82... gxf2 {[%clk 0:00:02.5]} 83. Kxf2 {[%clk 0:00:05.8]}
83... Qd5 {[%clk 0:00:03]} 84. Qc2 {[%clk 0:00:04.7]} 84... Qd4+ {[%clk
0:00:02.9]} 85. Kg2 {[%clk 0:00:05.2]} 85... Qc3 {[%clk 0:00:03.5]} 86. Qf5
{[%clk 0:00:05.2]} 86... Qd2+ {[%clk 0:00:02.8]} 87. Kg1 {[%clk 0:00:05.3]}
87... b3 {[%clk 0:00:03.3]} 88. Qc8 {[%clk 0:00:04.5]} 88... b2 {[%clk
0:00:03.3]} 89. Qc7+ {[%clk 0:00:05]} 89... Kg6 {[%clk 0:00:03.7]} 90. Qb7
{[%clk 0:00:04.9]} 90... Qc1+ {[%clk 0:00:03.4]} 91. Kg2 {[%clk 0:00:05.8]}
91... b1=Q {[%clk 0:00:03.6]} 92. Qa8 {[%clk 0:00:06.3]} 92... Qd2+ {[%clk
0:00:03.6]} 93. Kf3 {[%clk 0:00:06.5]} 93... Qbd3+ {[%clk 0:00:04.3]} 94. Kg4
{[%clk 0:00:06.7]} 94... Qf4# {[%clk 0:00:04.8]} 0-1

[Event "*** Titled Tuesday Blitz"]
[Site "Chess.com"]
[Date "2020.05.19"]
[Round "6"]
[White "Alliswell998"]
[Black "GMCarbone"]
[Result "0-1"]
[WhiteElo "2491"]
[BlackElo "2337"]
[TimeControl "180+1"]
[EndTime "13:12:01 PDT"]
[Termination "GMCarbone won by checkmate"]

1. e4 {[%clk 0:03:00.9]} 1... c5 {[%clk 0:02:59.2]} 2. Nc3 {[%clk 0:02:59.4]}
2... Nc6 {[%clk 0:02:58.9]} 3. f4 {[%clk 0:02:57.3]} 3... e6 {[%clk 0:02:57.5]}
4. Nf3 {[%clk 0:02:57.9]} 4... a6 {[%clk 0:02:56.2]} 5. d4 {[%clk 0:02:57.6]}
5... cxd4 {[%clk 0:02:57.1]} 6. Nxd4 {[%clk 0:02:58.3]} 6... Qc7 {[%clk
0:02:55.6]} 7. Be3 {[%clk 0:02:57.9]} 7... b5 {[%clk 0:02:50.6]} 8. Bd3 {[%clk
0:02:55.3]} 8... Bb7 {[%clk 0:02:50.5]} 9. Qd2 {[%clk 0:02:50.9]} 9... Nf6
{[%clk 0:02:41]} 10. a3 {[%clk 0:02:49.7]} 10... d5 {[%clk 0:02:25.1]} 11. e5
{[%clk 0:02:48.5]} 11... Nd7 {[%clk 0:02:22.4]} 12. O-O {[%clk 0:02:36.7]} 12...
Nb6 {[%clk 0:02:13.7]} 13. b3 {[%clk 0:02:29.6]} 13... Rc8 {[%clk 0:02:12.8]}
14. Nce2 {[%clk 0:02:25.9]} 14... Bc5 {[%clk 0:02:10.5]} 15. Kh1 {[%clk
0:02:18.9]} 15... Nxd4 {[%clk 0:02:09.5]} 16. Nxd4 {[%clk 0:02:15.4]} 16... Nd7
{[%clk 0:02:08.9]} 17. Qf2 {[%clk 0:02:03.3]} 17... g6 {[%clk 0:02:03]} 18. Qh4
{[%clk 0:01:55.8]} 18... Be7 {[%clk 0:02:00.8]} 19. Qh6 {[%clk 0:01:51.6]} 19...
Bf8 {[%clk 0:02:00.1]} 20. Qh3 {[%clk 0:01:50.2]} 20... Nc5 {[%clk 0:01:58.2]}
21. Rac1 {[%clk 0:01:42.5]} 21... Be7 {[%clk 0:01:49.1]} 22. b4 {[%clk 0:01:40]}
22... Ne4 {[%clk 0:01:46.3]} 23. Bxe4 {[%clk 0:01:29.4]} 23... dxe4 {[%clk
0:01:47.2]} 24. Rcd1 {[%clk 0:01:12.2]} 24... O-O {[%clk 0:01:45.6]} 25. Qg3
{[%clk 0:01:07.1]} 25... Kh8 {[%clk 0:01:33.5]} 26. h4 {[%clk 0:01:00]} 26...
Rg8 {[%clk 0:01:29.9]} 27. Nb3 {[%clk 0:00:54.5]} 27... Bd5 {[%clk 0:01:27.9]}
28. Nc5 {[%clk 0:00:53.7]} 28... Qd8 {[%clk 0:01:22.1]} 29. Bf2 {[%clk
0:00:42.3]} 29... Qc7 {[%clk 0:01:00.9]} 30. Qg4 {[%clk 0:00:37.1]} 30... a5
{[%clk 0:00:57.6]} 31. Bd4 {[%clk 0:00:36.6]} 31... axb4 {[%clk 0:00:54.4]} 32.
axb4 {[%clk 0:00:37.5]} 32... Qd8 {[%clk 0:00:49]} 33. g3 {[%clk 0:00:36.9]}
33... Ra8 {[%clk 0:00:42.9]} 34. Kh2 {[%clk 0:00:36.7]} 34... Ra2 {[%clk
0:00:41.8]} 35. Rf2 {[%clk 0:00:37.2]} 35... h5 {[%clk 0:00:30.5]} 36. Qh3
{[%clk 0:00:35.5]} 36... Qc7 {[%clk 0:00:30.4]} 37. Rfd2 {[%clk 0:00:34.4]}
37... Rga8 {[%clk 0:00:29.2]} 38. Qf1 {[%clk 0:00:34.2]} 38... Qc6 {[%clk
0:00:28.5]} 39. c3 {[%clk 0:00:33.6]} 39... Kh7 {[%clk 0:00:27.4]} 40. Qe1
{[%clk 0:00:32.6]} 40... Rxd2+ {[%clk 0:00:25.6]} 41. Rxd2 {[%clk 0:00:32.1]}
41... Ra3 {[%clk 0:00:24.5]} 42. Re2 {[%clk 0:00:32]} 42... Qa8 {[%clk
0:00:19.9]} 43. Nxe4 {[%clk 0:00:29.5]} 43... Ra2 {[%clk 0:00:20.3]} 44. Rxa2
{[%clk 0:00:27]} 44... Qxa2+ {[%clk 0:00:21.2]} 45. Qd2 {[%clk 0:00:27.2]} 45...
Qb1 {[%clk 0:00:17.3]} 46. Nf2 {[%clk 0:00:25.4]} 46... Qf1 {[%clk 0:00:16.4]}
47. Ne4 {[%clk 0:00:08.5]} 47... Bxe4 {[%clk 0:00:13.6]} 48. Bg1 {[%clk
0:00:09.4]} 48... Qf3 {[%clk 0:00:09.9]} 49. g4 {[%clk 0:00:05.3]} 49... hxg4
{[%clk 0:00:08.1]} 50. Bc5 {[%clk 0:00:02.6]} 50... Qh3+ {[%clk 0:00:06.5]} 51.
Kg1 {[%clk 0:00:02.5]} 51... Qh1+ {[%clk 0:00:06.3]} 52. Kf2 {[%clk 0:00:02.9]}
52... Qh2+ {[%clk 0:00:04.6]} 53. Ke1 {[%clk 0:00:01.9]} 53... Qh1+ {[%clk
0:00:03.7]} 54. Ke2 {[%clk 0:00:02]} 54... Bf3+ {[%clk 0:00:03.8]} 55. Kd3
{[%clk 0:00:02.4]} 55... g3 {[%clk 0:00:04]} 56. Kc2 {[%clk 0:00:03.3]} 56...
Qg2 {[%clk 0:00:03.7]} 57. Bxe7 {[%clk 0:00:02.8]} 57... Be4+ {[%clk 0:00:03.7]}
58. Kc1 {[%clk 0:00:02.7]} 58... Qxd2+ {[%clk 0:00:04.2]} 59. Kxd2 {[%clk
0:00:03.6]} 59... g2 {[%clk 0:00:04.4]} 60. Bc5 {[%clk 0:00:04.5]} 60... Kh6
{[%clk 0:00:05.3]} 61. Bg1 {[%clk 0:00:04.8]} 61... Kh5 {[%clk 0:00:06.2]} 62.
Ke3 {[%clk 0:00:05.7]} 62... Kxh4 {[%clk 0:00:07.1]} 63. Kf2 {[%clk 0:00:06.3]}
63... Kh3 {[%clk 0:00:08]} 64. c4 {[%clk 0:00:05.5]} 64... Kg4 {[%clk
0:00:08.9]} 65. cxb5 {[%clk 0:00:05.1]} 65... Kf5 {[%clk 0:00:09.2]} 66. b6
{[%clk 0:00:06]} 66... Bb7 {[%clk 0:00:07.6]} 67. Bh2 {[%clk 0:00:06]} 67... Ke4
{[%clk 0:00:08.5]} 68. Ke2 {[%clk 0:00:06.3]} 68... Kd4 {[%clk 0:00:08.3]} 69.
Kf2 {[%clk 0:00:06.2]} 69... Kc4 {[%clk 0:00:09.2]} 70. f5 {[%clk 0:00:06.9]}
70... Kxb4 {[%clk 0:00:10.1]} 71. fxg6 {[%clk 0:00:06.8]} 71... fxg6 {[%clk
0:00:11]} 72. Ke3 {[%clk 0:00:07.1]} 72... Kb5 {[%clk 0:00:10.7]} 73. Kd4 {[%clk
0:00:08]} 73... Kxb6 {[%clk 0:00:10.8]} 74. Ke3 {[%clk 0:00:07.2]} 74... Kb5
{[%clk 0:00:10.9]} 75. Kf4 {[%clk 0:00:08.1]} 75... Kc4 {[%clk 0:00:11.6]} 76.
Bg1 {[%clk 0:00:09]} 76... Kd3 {[%clk 0:00:11.2]} 77. Ba7 {[%clk 0:00:09.9]}
77... Ke2 {[%clk 0:00:10.9]} 78. Kg3 {[%clk 0:00:09.1]} 78... Kf1 {[%clk
0:00:10.6]} 79. Kh2 {[%clk 0:00:09.4]} 79... Bd5 {[%clk 0:00:10.7]} 80. Bd4
{[%clk 0:00:08.7]} 80... g5 {[%clk 0:00:10.2]} 81. Be3 {[%clk 0:00:04.1]} 81...
g4 {[%clk 0:00:10.4]} 82. Bd4 {[%clk 0:00:02.4]} 82... g3+ {[%clk 0:00:10.4]}
83. Kxg3 {[%clk 0:00:03.2]} 83... g1=Q+ {[%clk 0:00:09.9]} 84. Bxg1 {[%clk
0:00:04.1]} 84... Kxg1 {[%clk 0:00:10.8]} 85. Kf4 {[%clk 0:00:05]} 85... Kf2
{[%clk 0:00:10.8]} 86. Kg4 {[%clk 0:00:05.2]} 86... Ke3 {[%clk 0:00:11.7]} 87.
Kg3 {[%clk 0:00:06.1]} 87... Ke4 {[%clk 0:00:12.2]} 88. Kf2 {[%clk 0:00:07]}
88... Kxe5 {[%clk 0:00:13.1]} 89. Ke2 {[%clk 0:00:07.9]} 89... Ke4 {[%clk
0:00:13]} 90. Kd2 {[%clk 0:00:08.8]} 90... Kf3 {[%clk 0:00:13.1]} 91. Ke1 {[%clk
0:00:09.1]} 91... e5 {[%clk 0:00:12.9]} 92. Kf1 {[%clk 0:00:10]} 92... e4 {[%clk
0:00:13.4]} 93. Ke1 {[%clk 0:00:10.9]} 93... e3 {[%clk 0:00:13.8]} 94. Kf1
{[%clk 0:00:11.8]} 94... Bc4+ {[%clk 0:00:13.7]} 95. Ke1 {[%clk 0:00:12.1]}
95... e2 {[%clk 0:00:14]} 96. Kd2 {[%clk 0:00:13]} 96... Kf2 {[%clk 0:00:14.9]}
97. Kc2 {[%clk 0:00:13.9]} 97... e1=Q {[%clk 0:00:13.5]} 98. Kb2 {[%clk
0:00:14.8]} 98... Qb4+ {[%clk 0:00:13.4]} 99. Ka1 {[%clk 0:00:15.1]} 99... Qc3+
{[%clk 0:00:11.3]} 100. Kb1 {[%clk 0:00:15.3]} 100... Bd3+ {[%clk 0:00:11]} 101.
Ka2 {[%clk 0:00:15.3]} 101... Qc2+ {[%clk 0:00:09.6]} 102. Ka1 {[%clk
0:00:16.2]} 102... Qa4+ {[%clk 0:00:08.4]} 103. Kb2 {[%clk 0:00:16.1]} 103...
Ke3 {[%clk 0:00:08.2]} 104. Kc1 {[%clk 0:00:17]} 104... Ke2 {[%clk 0:00:07]}
105. Kb2 {[%clk 0:00:17.9]} 105... Qb4+ {[%clk 0:00:06]} 106. Ka2 {[%clk
0:00:18.2]} 106... Bb1+ {[%clk 0:00:05]} 107. Ka1 {[%clk 0:00:19.1]} 107... Bc2
{[%clk 0:00:05.1]} 108. Ka2 {[%clk 0:00:19.2]} 108... Qb3+ {[%clk 0:00:05.5]}
109. Ka1 {[%clk 0:00:20.1]} 109... Qb1# {[%clk 0:00:06.4]} 0-1

[Event "*** Titled Tuesday Blitz"]
[Site "Chess.com"]
[Date "2020.05.19"]
[Round "6"]
[White "chito89"]
[Black "Er_is_geen_hoop_meer"]
[Result "1/2-1/2"]
[WhiteElo "2729"]
[BlackElo "2448"]
[TimeControl "180+1"]
[EndTime "13:12:56 PDT"]
[Termination "Game drawn by agreement"]

1. e4 {[%clk 0:03:00.9]} 1... g6 {[%clk 0:02:57.5]} 2. d4 {[%clk 0:02:58.8]}
2... Bg7 {[%clk 0:02:58]} 3. Nc3 {[%clk 0:02:57.5]} 3... a6 {[%clk 0:02:58]} 4.
Bg5 {[%clk 0:02:50.6]} 4... b5 {[%clk 0:02:57.4]} 5. f3 {[%clk 0:02:42.3]} 5...
d6 {[%clk 0:02:57.1]} 6. Qd2 {[%clk 0:02:41]} 6... Bb7 {[%clk 0:02:55.7]} 7. h4
{[%clk 0:02:38.9]} 7... h6 {[%clk 0:02:55.4]} 8. Be3 {[%clk 0:02:37.9]} 8... Nd7
{[%clk 0:02:55.9]} 9. a4 {[%clk 0:02:14.9]} 9... b4 {[%clk 0:02:55.1]} 10. Nd5
{[%clk 0:02:15]} 10... a5 {[%clk 0:02:54.1]} 11. Bc4 {[%clk 0:02:07.5]} 11... e6
{[%clk 0:02:52.7]} 12. Nf4 {[%clk 0:02:04]} 12... Nb6 {[%clk 0:02:52.8]} 13. Bd3
{[%clk 0:01:44.6]} 13... e5 {[%clk 0:02:47.5]} 14. Nfe2 {[%clk 0:01:40.3]} 14...
exd4 {[%clk 0:02:45.9]} 15. Nxd4 {[%clk 0:01:34.1]} 15... c5 {[%clk 0:02:40.5]}
16. Bb5+ {[%clk 0:01:27.1]} 16... Kf8 {[%clk 0:02:38.4]} 17. Nde2 {[%clk
0:01:25.1]} 17... Bxb2 {[%clk 0:02:35.4]} 18. Rd1 {[%clk 0:01:25.5]} 18... Ke7
{[%clk 0:02:10.7]} 19. c3 {[%clk 0:01:24]} 19... Ba3 {[%clk 0:02:00]} 20. Nh3
{[%clk 0:01:20.2]} 20... Nf6 {[%clk 0:01:53.3]} 21. O-O {[%clk 0:01:02.8]} 21...
Ba6 {[%clk 0:01:52]} 22. Bxa6 {[%clk 0:00:52.3]} 22... Rxa6 {[%clk 0:01:52.9]}
23. e5 {[%clk 0:00:49.7]} 23... Nfd5 {[%clk 0:01:29.9]} 24. Nhf4 {[%clk
0:00:35.4]} 24... Nxf4 {[%clk 0:01:06.6]} 25. exd6+ {[%clk 0:00:32.4]} 25... Kf8
{[%clk 0:01:06.8]} 26. Bxf4 {[%clk 0:00:22.5]} 26... Qxh4 {[%clk 0:01:06.4]} 27.
d7 {[%clk 0:00:21.5]} 27... Nxd7 {[%clk 0:01:01.6]} 28. Qxd7 {[%clk 0:00:20.6]}
28... Re6 {[%clk 0:00:59.4]} 29. Qd8+ {[%clk 0:00:16.9]} 29... Qxd8 {[%clk
0:00:59.4]} 30. Rxd8+ {[%clk 0:00:17.5]} 30... Kg7 {[%clk 0:01:00.1]} 31. Rxh8
{[%clk 0:00:17.9]} 31... Kxh8 {[%clk 0:01:01]} 32. Kf2 {[%clk 0:00:13.8]} 32...
b3 {[%clk 0:00:59.9]} 33. Be3 {[%clk 0:00:13.3]} 33... g5 {[%clk 0:00:56.9]} 34.
Rb1 {[%clk 0:00:12.2]} 34... b2 {[%clk 0:00:56.9]} 35. Ng3 {[%clk 0:00:11.1]}
35... Rb6 {[%clk 0:00:51.4]} 36. Ne4 {[%clk 0:00:11.1]} 36... Rb3 {[%clk
0:00:51.6]} 37. Bxc5 {[%clk 0:00:09.2]} 37... Bxc5+ {[%clk 0:00:47.3]} 38. Nxc5
{[%clk 0:00:09.7]} 38... Rxc3 {[%clk 0:00:47.9]} 39. Nb7 {[%clk 0:00:10.2]}
39... Ra3 {[%clk 0:00:43.1]} 40. Rxb2 {[%clk 0:00:06.9]} 40... Rxa4 {[%clk
0:00:43.1]} 41. Nd6 {[%clk 0:00:06.4]} 41... Kg7 {[%clk 0:00:41.7]} 42. Rb7
{[%clk 0:00:06.3]} 42... Rf4 {[%clk 0:00:40.2]} 43. Ra7 {[%clk 0:00:06]} 43...
Kg6 {[%clk 0:00:36.2]} 44. Rxa5 {[%clk 0:00:04.9]} 44... Rf6 {[%clk 0:00:36.6]}
45. Ne4 {[%clk 0:00:04.7]} 45... Re6 {[%clk 0:00:36.6]} 46. g4 {[%clk
0:00:05.1]} 46... f6 {[%clk 0:00:34.7]} 47. Ng3 {[%clk 0:00:03.3]} 47... Re7
{[%clk 0:00:35.2]} 48. Ra6 {[%clk 0:00:03]} 48... Rb7 {[%clk 0:00:33.9]} 49. Nh5
{[%clk 0:00:03.4]} 49... Rf7 {[%clk 0:00:33.3]} 50. Kg3 {[%clk 0:00:04]} 50...
Rf8 {[%clk 0:00:32.9]} 51. Rb6 {[%clk 0:00:04.7]} 51... Rf7 {[%clk 0:00:33.2]}
52. Rc6 {[%clk 0:00:05.3]} 52... Rf8 {[%clk 0:00:33.5]} 53. Kf2 {[%clk
0:00:05.9]} 53... Rf7 {[%clk 0:00:33.7]} 54. Ng3 {[%clk 0:00:06.6]} 54... Ra7
{[%clk 0:00:32.8]} 55. Rc8 {[%clk 0:00:06.9]} 55... Ra2+ {[%clk 0:00:32]} 56.
Ne2 {[%clk 0:00:07.4]} 56... h5 {[%clk 0:00:29.1]} 57. gxh5+ {[%clk 0:00:07.6]}
57... Kxh5 {[%clk 0:00:30]} 58. Ke3 {[%clk 0:00:07.5]} 58... Ra3+ {[%clk
0:00:29.3]} 59. Kf2 {[%clk 0:00:07.7]} 59... Kg6 {[%clk 0:00:19.3]} 60. Rc5
{[%clk 0:00:07.2]} 60... Rb3 {[%clk 0:00:18.7]} 61. Kg3 {[%clk 0:00:06.5]} 61...
Ra3 {[%clk 0:00:18.6]} 62. Nd4 {[%clk 0:00:06.8]} 62... Rd3 {[%clk 0:00:18.2]}
63. Nf5 {[%clk 0:00:07]} 63... Ra3 {[%clk 0:00:17.4]} 64. Ne7+ {[%clk
0:00:06.9]} 64... Kf7 {[%clk 0:00:17.5]} 65. Rc7 {[%clk 0:00:07.4]} 65... Ke6
{[%clk 0:00:17.6]} 66. Ng8 {[%clk 0:00:07.9]} 66... f5 {[%clk 0:00:17.5]} 67.
Re7+ {[%clk 0:00:07.5]} 67... Kd6 {[%clk 0:00:17.5]} 68. Kf2 {[%clk 0:00:06.6]}
68... g4 {[%clk 0:00:17.3]} 69. fxg4 {[%clk 0:00:04.9]} 69... fxg4 {[%clk
0:00:17.3]} 70. Rg7 {[%clk 0:00:05.5]} 70... Ra4 {[%clk 0:00:17.1]} 71. Kg3
{[%clk 0:00:05.6]} 71... Ke6 {[%clk 0:00:16.9]} 72. Nh6 {[%clk 0:00:06.1]} 72...
Kf6 {[%clk 0:00:17.3]} 73. Rb7 {[%clk 0:00:05.7]} 73... Kg5 {[%clk 0:00:15.9]}
74. Nf7+ {[%clk 0:00:06.2]} 74... Kf6 {[%clk 0:00:15.9]} 75. Nd6 {[%clk
0:00:05.7]} 75... Ke5 {[%clk 0:00:15.9]} 76. Rb6 {[%clk 0:00:05.7]} 76... Rd4
{[%clk 0:00:15.3]} 77. Nf7+ {[%clk 0:00:05.5]} 77... Kf5 {[%clk 0:00:15.6]} 78.
Rb5+ {[%clk 0:00:05.3]} 78... Kf6 {[%clk 0:00:15.7]} 79. Ne5 {[%clk 0:00:05.4]}
79... Ra4 {[%clk 0:00:15.1]} 80. Nxg4+ {[%clk 0:00:04.8]} 80... Ke6 {[%clk
0:00:15.5]} 81. Ne3 {[%clk 0:00:05.3]} 81... Kd6 {[%clk 0:00:15.6]} 82. Kf3
{[%clk 0:00:05.7]} 82... Ra1 {[%clk 0:00:15.9]} 83. Rh5 {[%clk 0:00:05.2]} 83...
Re1 {[%clk 0:00:15.9]} 84. Rh6+ {[%clk 0:00:04.8]} 84... Ke5 {[%clk 0:00:15.6]}
85. Rh5+ {[%clk 0:00:04.2]} 85... Ke6 {[%clk 0:00:15.7]} 86. Nc2 {[%clk
0:00:04.2]} 86... Rc1 {[%clk 0:00:15]} 87. Nd4+ {[%clk 0:00:03.8]} 87... Kd6
{[%clk 0:00:15.2]} 88. Ke3 {[%clk 0:00:04.2]} 88... Re1+ {[%clk 0:00:14.8]} 89.
Kd2 {[%clk 0:00:04.7]} 89... Ra1 {[%clk 0:00:14.6]} 90. Rg5 {[%clk 0:00:04.5]}
90... Rf1 {[%clk 0:00:14.4]} 91. Nf5+ {[%clk 0:00:03.6]} 91... Ke6 {[%clk
0:00:13.2]} 92. Ne3 {[%clk 0:00:04.2]} 92... Rh1 {[%clk 0:00:12.3]} 93. Kd3
{[%clk 0:00:03.9]} 93... Re1 {[%clk 0:00:12.7]} 94. Ke4 {[%clk 0:00:03.8]} 94...
Kf6 {[%clk 0:00:12.9]} 95. Rf5+ {[%clk 0:00:04.3]} 95... Ke6 {[%clk 0:00:12.9]}
96. Ra5 {[%clk 0:00:04.7]} 96... Kf6 {[%clk 0:00:13]} 97. Ra3 {[%clk 0:00:04.7]}
97... Re2 {[%clk 0:00:12.2]} 98. Kf3 {[%clk 0:00:04.2]} 98... Re1 {[%clk
0:00:12.4]} 99. Kf4 {[%clk 0:00:04.6]} 99... Re2 {[%clk 0:00:12.2]} 100. Ra6+
{[%clk 0:00:04.7]} 100... Ke7 {[%clk 0:00:11.5]} 101. Nf5+ {[%clk 0:00:04.8]}
101... Kd7 {[%clk 0:00:11.6]} 102. Ra7+ {[%clk 0:00:05.4]} 102... Kc6 {[%clk
0:00:11]} 103. Nd4+ {[%clk 0:00:05.2]} 103... Kb6 {[%clk 0:00:11.3]} 104. Rh7
{[%clk 0:00:05.7]} 104... Re1 {[%clk 0:00:11.2]} 105. Kf5 {[%clk 0:00:05.5]}
105... Re3 {[%clk 0:00:10.3]} 106. Ne6 {[%clk 0:00:05.2]} 106... Re1 {[%clk
0:00:10.1]} 107. Rh6 {[%clk 0:00:05.6]} 107... Kb5 {[%clk 0:00:10.2]} 108. Nf4
{[%clk 0:00:04.6]} 108... Kc4 {[%clk 0:00:10.5]} 109. Rc6+ {[%clk 0:00:03.9]}
109... Kb5 {[%clk 0:00:10.6]} 110. Rc8 {[%clk 0:00:04.3]} 110... Re3 {[%clk
0:00:10.5]} 111. Nd5 {[%clk 0:00:04]} 111... Re1 {[%clk 0:00:10.8]} 112. Kf6
{[%clk 0:00:04.2]} 112... Rf1+ {[%clk 0:00:07.3]} 113. Ke5 {[%clk 0:00:04.3]}
113... Rh1 {[%clk 0:00:07.6]} 114. Kd4 {[%clk 0:00:03.6]} 114... Rh4+ {[%clk
0:00:07.5]} 115. Kd3 {[%clk 0:00:03.7]} 115... Rh3+ {[%clk 0:00:07.6]} 116. Ne3
{[%clk 0:00:04.2]} 116... Rg3 {[%clk 0:00:08]} 117. Kd4 {[%clk 0:00:04.1]}
117... Rh3 {[%clk 0:00:07.6]} 118. Nf5 {[%clk 0:00:04.4]} 118... Kb6 {[%clk
0:00:06.9]} 119. Nd6 {[%clk 0:00:03.5]} 119... Rh4+ {[%clk 0:00:06.7]} 120. Kd5
{[%clk 0:00:03.9]} 120... Rh5+ {[%clk 0:00:06.6]} 121. Kd4 {[%clk 0:00:04.4]}
121... Rh4+ {[%clk 0:00:06.7]} 122. Ne4 {[%clk 0:00:04.9]} 122... Rg4 {[%clk
0:00:07]} 123. Rc2 {[%clk 0:00:05.1]} 123... Kb7 {[%clk 0:00:06.2]} 124. Kd5
{[%clk 0:00:04.3]} 1/2-1/2